bitfinex/quotes_BTCUSD_20250212
["timestamp","ask_amount","ask_price","bid_price","bid_amount"]
[1739382469099,0.153679,97606.0,97598.0,0.20692]
[1739382469239,0.153679,97606.0,97599.0,0.153688]
[1739382469456,0.153679,97606.0,97601.0,0.004]
[1739382469661,0.20488,97618.0,97601.0,0.0847]
[1739382469855,0.204882,97617.0,97601.0,0.002]
[1739382470060,0.204882,97617.0,97604.0,0.002]
[1739382470301,0.153677,97607.0,97604.0,0.02011492]
[1739382470730,0.153677,97607.0,97601.0,0.157685]
[1739382471048,0.00013193,97619.0,97601.0,0.004]
[1739382471254,0.153682,97604.0,97601.0,0.002]
[1739382471675,0.153679,97606.0,97600.0,0.153688]
[1739382472143,0.00013193,97619.0,97594.0,0.0827]
[1739382472294,0.00013193,97619.0,97603.0,0.02002872]
[1739382472295,0.204886,97615.0,97603.0,0.02002872]
[1739382472502,0.153682,97604.0,97603.0,0.02002872]
[1739382473298,0.204907,97606.0,97603.0,0.02002872]
[1739382473530,0.153681,97605.0,97603.0,0.02002872]
[1739382473732,0.153679,97606.0,97603.0,0.02202872]
[1739382473928,0.153679,97606.0,97595.0,0.204928]
[1739382474138,0.153679,97606.0,97600.0,0.153687]
[1739382474486,0.204902,97608.0,97600.0,0.153687]
[1739382474649,0.153679,97606.0,97600.0,0.153687]
[1739382475238,0.153679,97606.0,97603.0,0.002]
[1739382475440,0.153679,97606.0,97603.0,0.003]
[1739382475831,0.153677,97607.0,97601.0,0.153686]
[1739382476033,0.153677,97607.0,97602.0,0.153685]
[1739382476268,0.153677,97607.0,97601.0,0.153686]
[1739382476473,0.153679,97606.0,97603.0,0.001]
[1739382476664,0.153681,97605.0,97601.0,0.0208628]
[1739382476940,0.153681,97605.0,97603.0,0.002]
[1739382477142,0.204886,97615.0,97603.0,0.002]
[1739382477385,0.153682,97604.0,97603.0,0.002]
[1739382478138,0.204906,97606.0,97601.0,0.001]
[1739382478269,0.153686,97602.0,97596.0,0.153694]
[1739382478471,0.358592,97604.0,97603.0,0.004]
[1739382478879,0.0771,97605.0,97596.0,0.38832]
[1739382479079,0.153693,97597.0,97596.0,0.38832]
[1739382483505,0.155693,97597.0,97596.0,0.38832]
[1739382483697,0.002,97597.0,97596.0,0.38832]
[1739382483907,0.002,97597.0,97596.0,0.622514]
[1739382484491,0.005,97597.0,97596.0,0.622514]
[1739382484890,0.002,97597.0,97596.0,0.622514]
[1739382485203,0.002,97597.0,97596.0,0.692514]
[1739382485402,0.2049823,97620.0,97609.0,0.204897]
[1739382485557,0.153662,97617.0,97611.0,0.153671]
[1739382485762,0.15379093,97619.0,97612.0,0.153668]
[1739382485969,0.15379093,97619.0,97599.0,0.204919]
[1739382485970,0.00013193,97619.0,97599.0,0.023]
[1739382486164,0.00013193,97619.0,97618.0,0.15366]
[1739382486375,0.0001064,97652.0,97646.0,0.153616]
[1739382486604,0.0001064,97652.0,97646.0,0.231016]
[1739382486783,0.0001064,97652.0,97646.0,0.0774]
[1739382486784,0.15415993,97647.0,97646.0,0.0774]
[1739382486989,0.00054593,97647.0,97639.0,0.02083197]
[1739382487188,0.00054593,97647.0,97637.0,0.0763]
[1739382487189,0.153616,97646.0,97637.0,0.0763]
[1739382487389,0.00054593,97647.0,97638.0,0.150628]
[1739382487589,0.15415993,97647.0,97646.0,0.00762629]
[1739382487796,0.35897993,97647.0,97646.0,0.00762629]
[1739382487993,0.46148358,97647.0,97646.0,0.00762629]
[1739382488919,0.30786958,97647.0,97624.0,0.01218384]
[1739382489124,0.14164361,97634.0,97624.0,0.02015865]
[1739382489293,0.153652,97623.0,97618.0,0.6362]
[1739382489495,0.153658,97619.0,97618.0,0.6362]
[1739382490359,0.15356679,97619.0,97618.0,0.6362]
[1739382491404,0.15356679,97619.0,97618.0,0.6412]
[1739382491817,0.15356679,97619.0,97618.0,0.6392]
[1739382492015,0.15356679,97619.0,97618.0,0.6362]
[1739382492838,0.15356679,97619.0,97618.0,0.6382]
[1739382493377,0.20989757,97619.0,97618.0,0.6362]
[1739382493579,0.20989757,97619.0,97618.0,0.6382]
[1739382493790,0.20989757,97619.0,97618.0,0.6422]
[1739382493998,0.15356679,97619.0,97618.0,0.6422]
[1739382494372,0.15356679,97619.0,97618.0,0.6382]
[1739382494756,0.15356679,97619.0,97618.0,0.6402]
[1739382495000,0.15356679,97619.0,97618.0,0.6422]
[1739382495229,0.15356679,97619.0,97618.0,0.6402]
[1739382495621,0.15356679,97619.0,97618.0,0.6422]
[1739382495767,0.15356679,97619.0,97618.0,0.6402]
[1739382496361,0.153649,97625.0,97618.0,0.6402]
[1739382496564,0.0001063,97634.0,97618.0,0.6362]
[1739382496782,0.0001063,97634.0,97619.0,0.14950365]
[1739382497207,0.0001063,97634.0,97633.0,0.153636]
[1739382497405,0.0001063,97634.0,97633.0,0.233436]
[1739382497722,0.0001063,97634.0,97633.0,0.0798]
[1739382497937,0.0011063,97634.0,97633.0,0.0798]
[1739382498143,0.0011063,97634.0,97621.0,0.0798]
[1739382498144,0.0001063,97634.0,97621.0,0.0798]
[1739382498396,0.1537413,97634.0,97633.0,0.003]
[1739382498596,0.1537413,97634.0,97633.0,0.64112]
[1739382498770,0.1537413,97634.0,97633.0,0.63912]
[1739382498969,0.1537413,97634.0,97633.0,0.51612]
[1739382499195,0.1537413,97634.0,97633.0,0.51912]
[1739382499377,0.1537413,97634.0,97633.0,0.51612]
[1739382499617,0.1537413,97634.0,97633.0,0.51712]
[1739382500367,0.1537413,97634.0,97633.0,0.52312]
[1739382501007,0.1537413,97634.0,97633.0,0.51612]
[1739382501217,0.1547413,97634.0,97633.0,0.51612]
[1739382501420,0.1537413,97634.0,97633.0,0.51612]
[1739382501847,0.1547413,97634.0,97633.0,0.51612]
[1739382502053,0.0011063,97634.0,97633.0,0.51612]
[1739382502233,0.0001063,97634.0,97633.0,0.51612]
[1739382502448,0.0011063,97634.0,97633.0,0.51612]
[1739382502650,0.0001063,97634.0,97633.0,0.51612]
[1739382503374,0.0041063,97634.0,97633.0,0.51612]
[1739382503797,0.0041063,97634.0,97633.0,0.669756]
[1739382504014,0.0001063,97634.0,97633.0,0.73065965]
[1739382504236,7e-05,97666.0,97646.0,0.153616]
[1739382504450,7e-05,97666.0,97646.0,0.36151965]
[1739382505735,7e-05,97666.0,97646.0,1.24856965]
[1739382506444,7e-05,97666.0,97646.0,1.25615956]
[1739382506779,7e-05,97666.0,97646.0,1.27115956]
[1739382506981,7e-05,97666.0,97646.0,1.32399994]
[1739382507191,7e-05,97666.0,97646.0,1.33621217]
[1739382507383,7e-05,97666.0,97646.0,1.32921217]
[1739382507656,7e-05,97666.0,97646.0,1.34421217]
[1739382507809,7e-05,97666.0,97646.0,1.35121217]
[1739382508027,7e-05,97666.0,97646.0,1.34421217]
[1739382508891,7e-05,97666.0,97646.0,1.89771217]
[1739382509360,7e-05,97666.0,97646.0,1.88271217]
[1739382509525,7e-05,97666.0,97646.0,1.89771217]
[1739382510103,7e-05,97666.0,97646.0,1.88271217]
[1739382510432,7e-05,97666.0,97646.0,1.89771217]
[1739382511610,7e-05,97666.0,97646.0,2.04771217]
[1739382512173,0.0001064,97676.0,97647.0,0.173]
[1739382512374,0.0001064,97676.0,97675.0,0.15357]
[1739382512526,0.0002382,97676.0,97675.0,0.25607365]
[1739382513960,0.0002382,97676.0,97675.0,0.10250365]
[1739382514638,0.0002382,97676.0,97675.0,0.10750365]
[1739382514834,0.0002382,97676.0,97675.0,0.26107365]
[1739382515036,0.0002382,97676.0,97675.0,1.14397365]
[1739382516000,0.0045,97700.0,97699.0,0.200532]
[1739382516336,0.0804,97748.0,97699.0,0.200532]
[1739382516337,0.08205808,97745.0,97701.0,0.023]
[1739382516549,0.0001064,97745.0,97734.0,0.153476]
[1739382516755,0.00054575,97745.0,97717.0,0.5465]
[1739382516977,0.14164361,97730.0,97716.0,0.078]
[1739382517182,0.204626,97739.0,97719.0,0.02045082]
[1739382517384,0.14164361,97740.0,97719.0,0.02045082]
[1739382517560,0.14164361,97740.0,97716.0,0.87969]
[1739382517714,0.153492,97725.0,97716.0,0.87969]
[1739382517922,0.153489,97727.0,97717.0,0.02065643]
[1739382518135,0.14164361,97740.0,97717.0,0.90033643]
[1739382518338,0.14164361,97740.0,97720.0,0.153498]
[1739382518546,0.14164361,97740.0,97717.0,0.87968]
[1739382518889,0.153488,97728.0,97718.0,0.153502]
[1739382519334,0.153488,97727.0,97717.0,0.87968]
[1739382519539,0.204626,97739.0,97718.0,0.153502]
[1739382519747,0.204626,97739.0,97717.0,0.87968]
[1739382519957,0.153488,97728.0,97718.0,0.153502]
[1739382520190,0.153485,97730.0,97717.0,0.88068]
[1739382520392,0.204626,97739.0,97718.0,0.20467]
[1739382520616,0.204645,97730.0,97717.0,0.87968]
[1739382520800,0.004,97739.0,97719.0,0.204666]
[1739382521007,0.004,97739.0,97717.0,1.084351]
[1739382521211,0.153488,97728.0,97718.0,0.153502]
[1739382521418,0.14164361,97740.0,97717.0,0.87968]
[1739382521623,0.005,97739.0,97718.0,0.87968]
[1739382521772,0.153496,97722.0,97718.0,0.87968]
[1739382522586,0.153498,97721.0,97718.0,0.87968]
[1739382523188,0.153493,97724.0,97718.0,0.87968]
[1739382523418,0.204653,97727.0,97718.0,0.88168]
[1739382523589,0.204626,97739.0,97718.0,0.88168]
[1739382523799,0.1535,97720.0,97718.0,0.88268]
[1739382523999,0.153501,97719.0,97718.0,0.88668]
[1739382524228,0.01073983,97739.0,97718.0,0.98918365]
[1739382524452,0.14164361,97730.0,97718.0,1.08635]
[1739382524794,0.153478,97734.0,97719.0,0.17780365]
[1739382524993,0.004,97739.0,97721.0,0.204664]
[1739382525197,0.153475,97736.0,97722.0,0.10250365]
[1739382525399,0.153475,97736.0,97730.0,0.153483]
[1739382525615,0.204628,97738.0,97730.0,0.726126]
[1739382525830,0.004,97739.0,97730.0,0.726126]
[1739382526029,0.14164361,97740.0,97730.0,0.726126]
[1739382526434,0.14164361,97740.0,97733.0,0.153478]
[1739382526564,0.14164361,97740.0,97732.0,0.15348]
[1739382526776,0.14164361,97740.0,97730.0,0.726126]
[1739382526972,0.29511161,97740.0,97731.0,0.204643]
[1739382527184,0.29511161,97740.0,97732.0,0.15348]
[1739382527389,0.15348,97732.0,97731.0,1.0331]
[1739382528088,0.15348,97732.0,97731.0,1.0351]
[1739382529100,0.15348,97732.0,97731.0,0.9121]
[1739382529312,0.15348,97732.0,97731.0,0.9101]
[1739382529706,0.15348,97732.0,97731.0,0.9111]
[1739382529861,0.15348,97732.0,97731.0,0.9101]
[1739382530071,0.15348,97732.0,97731.0,0.9121]
[1739382530504,0.15348,97732.0,97731.0,0.9101]
[1739382530746,0.15548,97732.0,97731.0,0.9101]
[1739382532773,0.15348,97732.0,97731.0,0.9101]
[1739382532979,0.15548,97732.0,97731.0,0.9101]
[1739382533465,0.15348,97732.0,97731.0,0.9101]
[1739382533968,0.15348,97732.0,97731.0,0.7871]
[1739382534398,0.15212423,97732.0,97731.0,0.7871]
[1739382534812,0.15412423,97732.0,97731.0,0.7871]
[1739382536100,0.15212423,97732.0,97731.0,0.7871]
[1739382536310,0.15412423,97732.0,97731.0,0.7871]
[1739382536715,0.21046385,97732.0,97731.0,0.7871]
[1739382536915,0.15412423,97732.0,97731.0,0.7871]
[1739382537308,0.15212423,97732.0,97731.0,0.7871]
[1739382537519,0.15412423,97732.0,97731.0,0.7871]
[1739382538901,0.15412423,97732.0,97731.0,0.6641]
[1739382539200,0.15212423,97732.0,97731.0,0.6641]
[1739382539313,0.15412423,97732.0,97731.0,0.6641]
[1739382540727,0.15212423,97732.0,97731.0,0.6641]
[1739382540854,0.15412423,97732.0,97731.0,0.6641]
[1739382541493,0.40662788,97732.0,97731.0,0.6641]
[1739382541698,0.48512788,97732.0,97731.0,0.6641]
[1739382542134,0.48312788,97732.0,97731.0,0.6641]
[1739382542506,0.48512788,97732.0,97731.0,0.6641]
[1739382542899,0.48312788,97732.0,97731.0,0.6641]
[1739382543101,0.48512788,97732.0,97731.0,0.6641]
[1739382543560,0.30412423,97732.0,97731.0,0.6641]
[1739382543987,0.30412423,97732.0,97731.0,0.5411]
[1739382544116,0.30212423,97732.0,97731.0,0.5411]
[1739382544522,0.47685591,97732.0,97731.0,0.5411]
[1739382544724,0.40462788,97732.0,97731.0,0.5411]
[1739382545348,0.40662788,97732.0,97731.0,0.5411]
[1739382545730,0.40462788,97732.0,97731.0,0.5411]
[1739382546284,0.33958365,97732.0,97731.0,0.5411]
[1739382546901,0.33958365,97732.0,97731.0,0.500172]
[1739382546902,0.56592065,97732.0,97731.0,0.500172]
[1739382547115,0.66252832,97732.0,97731.0,0.42862537]
[1739382547326,0.66252832,97732.0,97681.0,0.15865168]
[1739382547327,0.153543,97692.0,97681.0,0.08195168]
[1739382547953,0.153555,97685.0,97673.0,0.0455]
[1739382548165,0.14164361,97701.0,97673.0,0.0455]
[1739382548166,0.14164361,97683.0,97673.0,0.0455]
[1739382548379,0.29520261,97683.0,97673.0,0.0455]
[1739382548590,0.153559,97682.0,97673.0,0.0455]
[1739382548802,0.143599,97682.0,97673.0,0.0455]
[1739382549224,0.204746,97682.0,97673.0,0.0455]
[1739382549431,0.153564,97679.0,97673.0,0.0455]
[1739382549674,0.204746,97682.0,97673.0,0.0455]
[1739382549884,0.28328722,97683.0,97673.0,0.0455]
[1739382550093,0.153575,97672.0,97671.0,0.00760903]
[1739382550718,0.153573,97673.0,97664.0,0.02090148]
[1739382550962,0.153573,97673.0,97664.0,0.02103328]
[1739382551146,0.29521561,97674.0,97673.0,0.006]
[1739382551405,0.153572,97674.0,97673.0,0.006]
[1739382551829,0.153572,97674.0,97673.0,0.017]
[1739382552274,0.153572,97674.0,97673.0,0.01722344]
[1739382552275,0.40607565,97674.0,97673.0,0.01722344]
[1739382552488,0.44961094,97674.0,97673.0,0.01122344]
[1739382552901,0.40607565,97674.0,97673.0,0.01122344]
[1739382553116,0.40707565,97674.0,97673.0,0.00022344]
[1739382553551,0.40807565,97674.0,97673.0,0.00022344]
[1739382553990,0.204766,97672.0,97635.0,0.08195168]
[1739382554203,0.14164361,97645.0,97635.0,0.08195168]
[1739382554424,0.14164361,97645.0,97636.0,0.10352771]
[1739382554642,0.14164361,97660.0,97650.0,0.153608]
[1739382554863,0.14164361,97660.0,97638.0,0.204838]
[1739382555069,0.14164361,97660.0,97654.0,0.153603]
[1739382555285,0.14164361,97660.0,97640.0,0.204834]
[1739382555501,0.14164361,97660.0,97641.0,0.10250365]
[1739382555710,0.14164361,97670.0,97642.0,0.0759]
[1739382555925,0.29522161,97670.0,97663.0,0.153589]
[1739382556411,0.14164361,97670.0,97664.0,0.153587]
[1739382556841,0.14164361,97670.0,97665.0,0.0771]
[1739382557048,0.14164361,97680.0,97669.0,0.153579]
[1739382557049,0.34639361,97680.0,97669.0,0.153579]
[1739382557253,0.002,97670.0,97668.0,0.15358]
[1739382557494,0.002,97670.0,97666.0,0.0475]
[1739382557701,0.002,97670.0,97669.0,0.153579]
[1739382558115,0.005,97670.0,97667.0,0.204776]
[1739382558317,0.005,97670.0,97667.0,0.153581]
[1739382558527,0.005,97670.0,97666.0,0.201084]
[1739382558755,0.005,97670.0,97666.0,0.0475]
[1739382558956,0.005,97670.0,97669.0,0.030579]
[1739382559164,0.002,97670.0,97666.0,0.252277]
[1739382559377,0.002,97670.0,97666.0,0.0475]
[1739382559587,0.002,97670.0,97666.0,0.0555]
[1739382559975,0.155578,97670.0,97666.0,0.0555]
[1739382560185,0.002,97670.0,97666.0,0.0555]
[1739382560826,0.204766,97673.0,97666.0,0.0555]
[1739382561006,0.28328722,97680.0,97666.0,0.0595]
[1739382561249,0.153583,97667.0,97666.0,0.012]
[1739382561876,0.153583,97667.0,97666.0,0.008]
[1739382562306,0.153609,97650.0,97649.0,0.0806]
[1739382562532,0.153609,97650.0,97643.0,0.0453]
[1739382563296,0.14164361,97653.0,97643.0,0.0453]
[1739382563498,0.14164361,97653.0,97649.0,0.15361]
[1739382563701,0.14164361,97659.0,97643.0,0.0503]
[1739382563902,0.153612,97649.0,97643.0,0.0623]
[1739382564291,0.14164361,97653.0,97643.0,0.0623]
[1739382564491,0.153611,97650.0,97643.0,0.0573]
[1739382564848,0.153609,97650.0,97643.0,0.0593]
[1739382565066,0.153613,97648.0,97643.0,0.0593]
[1739382565570,0.14164361,97653.0,97643.0,0.0573]
[1739382565773,0.14164361,97653.0,97641.0,0.00013168]
[1739382565774,0.153622,97642.0,97641.0,0.00013168]
[1739382567526,0.153622,97642.0,97641.0,0.00713168]
[1739382567699,0.153622,97642.0,97641.0,0.00013168]
[1739382568070,0.153622,97642.0,97641.0,0.00313168]
[1739382569063,0.153622,97642.0,97641.0,0.00013168]
[1739382569708,0.153622,97642.0,97641.0,0.01413168]
[1739382570089,0.153622,97642.0,97641.0,0.00013168]
[1739382570290,0.303622,97642.0,97641.0,0.00313168]
[1739382570540,0.303622,97642.0,97641.0,0.00013168]
[1739382570735,0.41989331,97642.0,97641.0,0.00013168]
[1739382571141,0.40612565,97642.0,97641.0,0.00013168]
[1739382571344,0.40612565,97642.0,97641.0,0.00113168]
[1739382573452,0.40612565,97642.0,97641.0,0.00013168]
[1739382573655,0.40912565,97642.0,97641.0,0.00013168]
[1739382573870,0.15,97641.0,97612.0,0.00497898]
[1739382574053,0.153665,97615.0,97612.0,0.00541841]
[1739382574704,0.14164361,97622.0,97612.0,0.00541841]
[1739382574839,0.14164361,97622.0,97612.0,0.00043943]
[1739382575041,0.153667,97614.0,97612.0,0.00043943]
[1739382575269,0.153667,97614.0,97612.0,0.00543943]
[1739382575470,0.14164361,97622.0,97612.0,0.00543943]
[1739382575718,0.14164361,97640.0,97613.0,0.10352808]
[1739382575922,0.14164361,97650.0,97613.0,0.10352808]
[1739382576260,0.14164361,97640.0,97629.0,0.153641]
[1739382576490,0.14164361,97640.0,97613.0,0.10250365]
[1739382576905,0.14164361,97640.0,97629.0,0.153642]
[1739382577126,0.14164361,97640.0,97629.0,0.0801]
[1739382577336,0.14164361,97640.0,97630.0,0.153641]
[1739382577725,0.29526861,97640.0,97630.0,0.02003278]
[1739382577937,0.153627,97639.0,97629.0,0.0801]
[1739382578346,0.14164361,97640.0,97629.0,0.0801]
[1739382578953,0.14164361,97640.0,97625.0,0.204865]
[1739382579153,0.14164361,97640.0,97628.0,0.02045347]
[1739382579533,0.14164361,97640.0,97630.0,0.204855]
[1739382579732,0.14164361,97640.0,97628.0,0.02045347]
[1739382579933,0.153628,97639.0,97625.0,0.153647]
[1739382580142,0.14164361,97635.0,97620.0,0.204874]
[1739382580493,0.153642,97630.0,97622.0,0.02006561]
[1739382580666,0.14164361,97635.0,97618.0,0.204878]
[1739382580863,0.153647,97627.0,97619.0,0.153658]
[1739382581093,0.153648,97626.0,97619.0,0.153658]
[1739382581297,0.204805,97654.0,97620.0,0.1238206]
[1739382581566,0.14164361,97640.0,97634.0,0.153634]
[1739382581745,0.153627,97639.0,97631.0,0.153638]
[1739382581948,0.14164361,97640.0,97631.0,0.51213]
[1739382582107,0.14164361,97641.0,97631.0,0.51213]
[1739382582304,0.153633,97635.0,97631.0,0.51213]
[1739382582658,0.14164361,97641.0,97631.0,0.51213]
[1739382582869,0.204848,97634.0,97631.0,0.51213]
[1739382583072,0.153638,97632.0,97631.0,0.51213]
[1739382583417,0.153638,97632.0,97631.0,0.51613]
[1739382583817,0.30920837,97632.0,97631.0,0.51613]
[1739382584022,0.25614165,97632.0,97631.0,0.39213]
[1739382584715,0.40614165,97632.0,97631.0,0.38813]
[1739382587146,0.303638,97632.0,97631.0,0.38813]
[1739382589114,0.303638,97632.0,97631.0,0.26413]
[1739382589532,0.303638,97632.0,97631.0,0.26435365]
[1739382594077,0.303638,97632.0,97631.0,0.14035365]
[1739382597455,0.153638,97632.0,97631.0,0.14035365]
[1739382599184,0.153638,97632.0,97631.0,0.01635365]
[1739382599947,0.153636,97633.0,97631.0,0.01635365]
[1739382600145,0.204843,97636.0,97631.0,0.01635365]
[1739382600571,0.00100069,97639.0,97631.0,0.01635365]
[1739382600769,0.00100069,97639.0,97634.0,0.153634]
[1739382601217,0.00100069,97639.0,97631.0,0.01635365]
[1739382601635,0.00100069,97639.0,97631.0,0.01735365]
[1739382601821,0.1537445,97632.0,97631.0,0.01735365]
[1739382602023,0.1537445,97632.0,97631.0,0.01635365]
[1739382603248,0.1537445,97632.0,97631.0,0.01935365]
[1739382603679,0.0001065,97632.0,97631.0,0.01935365]
[1739382604035,0.0001065,97632.0,97617.0,0.02816566]
[1739382604210,0.1537445,97632.0,97624.0,0.153649]
[1739382604418,0.1537445,97632.0,97625.0,0.153649]
[1739382604593,0.0001065,97632.0,97625.0,0.153649]
[1739382604796,0.0001065,97632.0,97631.0,0.002]
[1739382605259,0.1537445,97632.0,97624.0,0.003]
[1739382605468,0.204852,97631.0,97624.0,0.005]
[1739382605673,0.0001065,97632.0,97624.0,0.005]
[1739382605826,0.153652,97623.0,97618.0,0.00763259]
[1739382606026,0.204857,97629.0,97617.0,0.02816566]
[1739382606255,0.15366,97618.0,97617.0,0.00763259]
[1739382607239,0.204877,97620.0,97609.0,0.5465]
[1739382607446,0.153668,97613.0,97609.0,0.5465]
[1739382607645,0.153668,97613.0,97599.0,0.233889]
[1739382607825,0.25617165,97613.0,97596.0,0.00022323]
[1739382608040,0.26651792,97613.0,97596.0,0.00022323]
[1739382608444,0.41651792,97613.0,97612.0,0.00143943]
[1739382608688,0.41651792,97613.0,97612.0,0.00443943]
[1739382608893,0.26284992,97613.0,97583.0,0.08195168]
[1739382609091,0.153705,97589.0,97583.0,0.08208361]
[1739382609313,0.153711,97586.0,97583.0,0.00013193]
[1739382609511,0.153705,97589.0,97586.0,0.0076263]
[1739382609690,0.153707,97588.0,97586.0,0.0076263]
[1739382610091,0.153708,97587.0,97586.0,0.0076263]
[1739382610288,0.34658361,97590.0,97586.0,0.0076263]
[1739382610289,0.153707,97589.0,97586.0,0.0076263]
[1739382610473,0.153704,97590.0,97586.0,0.0076263]
[1739382610870,0.153704,97590.0,97584.0,0.153713]
[1739382611081,0.14164361,97596.0,97583.0,0.02518896]
[1739382611288,0.153688,97601.0,97594.0,0.153697]
[1739382611484,0.153692,97598.0,97588.0,0.204943]
[1739382611699,0.14164361,97610.0,97600.0,0.153687]
[1739382611867,0.153673,97610.0,97587.0,0.1219]
[1739382612077,0.153673,97610.0,97588.0,0.10250365]
[1739382612078,0.14164361,97610.0,97588.0,0.10250365]
[1739382612283,0.14164361,97610.0,97595.0,0.204927]
[1739382612485,0.153674,97609.0,97594.0,0.003]
[1739382612686,0.153674,97609.0,97602.0,0.153685]
[1739382612900,0.14164361,97620.0,97595.0,0.204928]
[1739382613098,0.14164361,97620.0,97603.0,0.02045896]
[1739382613308,0.153663,97617.0,97603.0,0.02045896]
[1739382613511,0.153666,97614.0,97603.0,0.02045896]
[1739382613716,0.153669,97613.0,97605.0,0.153679]
[1739382613916,0.204878,97619.0,97603.0,0.02045896]
[1739382614170,0.153669,97613.0,97605.0,0.15368]
[1739382614566,0.001,97617.0,97606.0,0.153678]
[1739382614740,0.153666,97615.0,97603.0,0.02045896]
[1739382615142,0.14164361,97620.0,97609.0,0.204898]
[1739382615351,0.001,97619.0,97603.0,0.02045896]
[1739382615556,0.0200665,97632.0,97604.0,0.18392799]
[1739382615768,0.0200665,97632.0,97604.0,0.18290365]
[1739382615978,0.0200665,97632.0,97621.0,0.153653]
[1739382616188,0.0200665,97632.0,97604.0,0.18290365]
[1739382616401,0.0200665,97632.0,97605.0,0.204907]
[1739382616606,0.0200665,97632.0,97606.0,0.10250365]
[1739382616813,0.0200665,97632.0,97607.0,0.5465]
[1739382617022,0.14164361,97630.0,97620.0,0.153656]
[1739382617365,0.14164361,97630.0,97625.0,0.153647]
[1739382617771,0.14164361,97640.0,97624.0,0.02089412]
[1739382618015,0.153644,97628.0,97618.0,0.153659]
[1739382618200,0.204848,97633.0,97622.0,0.17389607]
[1739382618401,0.204836,97639.0,97622.0,0.02024407]
[1739382618576,0.153631,97637.0,97627.0,0.153645]
[1739382618922,0.153631,97637.0,97627.0,0.029645]
[1739382619126,0.153631,97637.0,97622.0,0.02024407]
[1739382619127,0.153633,97635.0,97625.0,0.153648]
[1739382619334,0.153633,97635.0,97620.0,0.004]
[1739382619335,0.22840365,97634.0,97620.0,0.004]
[1739382619544,0.15,97633.0,97620.0,0.004]
[1739382619755,0.14164361,97635.0,97608.0,0.00146335]
[1739382619955,0.153644,97629.0,97619.0,0.153658]
[1739382620159,0.153641,97630.0,97618.0,0.005]
[1739382620371,0.153635,97634.0,97612.0,0.204891]
[1739382620503,0.14164361,97650.0,97619.0,0.10250365]
[1739382620710,0.001,97634.0,97632.0,0.153638]
[1739382620920,0.001,97634.0,97630.0,0.15364]
[1739382621121,0.15,97649.0,97621.0,0.204873]
[1739382621122,0.153623,97642.0,97621.0,0.204873]
[1739382621326,0.15362,97644.0,97636.0,0.153631]
[1739382621530,0.204825,97645.0,97636.0,0.153631]
[1739382621745,0.153622,97642.0,97633.0,0.22553218]
[1739382622159,0.01071944,97657.0,97635.0,0.204844]
[1739382622360,0.15,97659.0,97636.0,0.00102415]
[1739382622566,0.153607,97652.0,97636.0,0.10250365]
[1739382622790,0.14164361,97660.0,97636.0,0.10250365]
[1739382623040,0.15,97659.0,97637.0,0.20484]
[1739382623226,0.15213164,97660.0,97640.0,0.153624]
[1739382623227,0.153613,97648.0,97640.0,0.153624]
[1739382623385,0.34645861,97650.0,97640.0,0.153624]
[1739382623602,0.204815,97649.0,97639.0,0.153626]
[1739382623961,0.153619,97644.0,97636.0,0.10250365]
[1739382624163,0.14164361,97650.0,97633.0,0.02068518]
[1739382624365,0.153624,97641.0,97633.0,0.27682483]
[1739382624568,0.14177524,97650.0,97619.0,0.079]
[1739382624701,0.153634,97635.0,97620.0,0.10250365]
[1739382624887,0.153628,97639.0,97631.0,0.153639]
[1739382625091,0.153627,97639.0,97631.0,0.153639]
[1739382625502,0.204835,97640.0,97629.0,0.153642]
[1739382625947,0.15363,97637.0,97629.0,0.153642]
[1739382626150,0.15363,97637.0,97630.0,0.15364]
[1739382626827,0.15363,97637.0,97633.0,0.002]
[1739382627002,0.153632,97636.0,97629.0,0.004]
[1739382627193,0.153625,97640.0,97632.0,0.153637]
[1739382627408,0.153625,97640.0,97633.0,0.153636]
[1739382627743,0.153628,97639.0,97631.0,0.153638]
[1739382627947,0.153625,97640.0,97630.0,0.210855]
[1739382628187,0.153628,97639.0,97632.0,0.153637]
[1739382628607,0.0001065,97642.0,97632.0,0.002]
[1739382628803,0.153631,97637.0,97632.0,0.002]
[1739382629005,0.0001065,97642.0,97632.0,0.002]
[1739382629205,0.14175011,97642.0,97632.0,0.002]
[1739382629423,0.153636,97633.0,97632.0,0.002]
[1739382629767,0.153636,97633.0,97632.0,0.005]
[1739382630268,0.303636,97633.0,97632.0,0.003]
[1739382630484,0.352336,97633.0,97632.0,0.003]
[1739382630695,0.303639,97631.0,97630.0,0.002]
[1739382630902,0.153658,97619.0,97618.0,0.00022365]
[1739382632107,0.153658,97619.0,97618.0,0.00066253]
[1739382632307,0.153658,97619.0,97618.0,0.00266253]
[1739382632895,0.153658,97619.0,97618.0,0.00966253]
[1739382633516,0.204874,97621.0,97606.0,0.02008659]
[1739382633870,0.153666,97614.0,97606.0,0.02021852]
[1739382633992,0.153668,97613.0,97606.0,0.02021852]
[1739382634206,0.204868,97624.0,97606.0,0.02021852]
[1739382634416,0.153676,97608.0,97606.0,0.00013193]
[1739382634999,0.153676,97608.0,97606.0,0.00513193]
[1739382635306,0.153676,97608.0,97606.0,0.00013193]
[1739382635752,0.153676,97608.0,97606.0,0.00513193]
[1739382636151,0.153676,97608.0,97606.0,0.00013193]
[1739382636705,0.2049,97609.0,97606.0,0.00013193]
[1739382636906,0.153677,97607.0,97606.0,0.00013193]
[1739382637143,0.204888,97615.0,97606.0,0.00613193]
[1739382637379,0.153674,97609.0,97606.0,0.00013193]
[1739382637624,0.15,97629.0,97606.0,0.00013193]
[1739382637778,0.153677,97607.0,97606.0,0.00013193]
[1739382638182,0.153677,97607.0,97606.0,0.00213193]
[1739382638410,0.14164361,97620.0,97606.0,0.00035558]
[1739382638614,0.204885,97616.0,97606.0,0.00035558]
[1739382638814,0.004,97629.0,97607.0,0.30740565]
[1739382639024,0.153646,97627.0,97608.0,0.00102438]
[1739382639276,0.153644,97628.0,97621.0,0.153655]